fUST/lending_fUST_20240823
["ID","MTS","AMOUNT","RATE_DAILY","PERIOD"]
[335676391,1724421081614,1247.80174245,0.00014245,2]
[335676392,1724421081635,197.27883524,0.00014245,2]
[335676401,1724421151959,6080.23680694,0.00013971,2]
[335676405,1724421201783,345.94502061,0.00013971,2]
[335676406,1724421203854,193.21973886,0.00013971,2]
[335676407,1724421211660,2143.62270035,0.00013971,2]
[335676408,1724421212684,985.8926091,0.00013971,2]
[335676409,1724421218772,494.01100072,0.00013971,2]
[335676410,1724421222745,209.73889129,0.00013971,2]
[335676412,1724421235874,397.58661494,0.00013971,2]
[335676413,1724421249800,4534.7602402,0.00013971,2]
[335676415,1724421261251,27625.08603669,0.00013971,2]
[335676417,1724421295020,8845.97303828,0.00013971,2]
[335676418,1724421305146,9663.17336824,0.00013971,2]
[335676420,1724421318967,811.71027722,0.00013971,2]
[335676421,1724421320925,7014.77930494,0.00013971,2]
[335676422,1724421321696,862.83835129,0.00013971,2]
[335676423,1724421336003,154.76012181,0.00013971,2]
[335676426,1724421344359,154.86890394,0.00013971,2]
[335676427,1724421345688,2713.66408099,0.00013971,2]
[335676428,1724421346166,991.38842768,0.00013971,2]
[335676429,1724421350650,157.03136559,0.00013971,2]
[335676430,1724421351497,155.00156571,0.00013971,2]
[335676431,1724421354476,1301.19725324,0.00013971,2]
[335676432,1724421356832,1362.93248849,0.00013971,2]
[335676433,1724421357207,1897.6397607,0.00013971,2]
[335676434,1724421357247,375.39357156,0.00013971,2]
[335676435,1724421361767,411.69064325,0.00013971,2]
[335676436,1724421375343,172.41767206,0.00013971,2]
[335676437,1724421379384,493.30380925,0.00013971,2]
[335676438,1724421383563,303.45833285,0.00013971,2]
[335676439,1724421387139,1435.41156726,0.00013971,2]
[335676440,1724421404307,898.92251749,0.00013971,2]
[335676441,1724421414781,360.49657913,0.00013971,2]
[335676442,1724421442632,288.27624498,0.00013971,2]
[335676444,1724421460157,1215.53433434,0.00013971,2]
[335676446,1724421475581,269.47059768,0.00013971,2]
[335676447,1724421482479,521.54236624,0.00013971,2]
[335676449,1724421497455,815.3797077,0.00013971,2]
[335676451,1724421515145,7914.07629596,0.00013971,2]
[335676452,1724421518238,608.49432532,0.00013971,2]
[335676454,1724421585713,2713.12344355,0.00013971,2]
[335676459,1724421760354,1176.38569243,0.00013971,2]
[335676460,1724421764572,510.5149478,0.00013971,2]
[335676461,1724421778244,188.3,0.00010959,2]
[335676464,1724421796859,154.74467129,0.00013971,2]
[335676465,1724421797149,621.06231277,0.00014,2]
[335676467,1724421820243,13986.75830738,0.00013971,2]
[335676468,1724421822304,24900.0,0.00013672,2]
[335676469,1724421824673,22003.94882025,0.00013971,2]
[335676471,1724421830426,228.44159224,0.00013971,2]
[335676472,1724421835145,170.5288816,0.00013971,2]
[335676473,1724421841799,405.4347584,0.00014,2]
[335676474,1724421843821,4722.61599945,0.00014,2]
[335676475,1724421845892,275.69200536,0.00013971,2]
[335676476,1724421848214,9663.17336824,0.00013971,2]
[335676478,1724421849449,1043.53886067,0.00013971,2]
[335676479,1724421852855,1672.57230303,0.00014,2]
[335676480,1724421859318,245.37793569,0.00014,2]
[335676481,1724421859916,482.63306573,0.00013971,2]
[335676482,1724421864917,510.5149478,0.00014,2]
[335676483,1724421865102,167.37408288,0.00014,2]
[335676484,1724421874407,1514.61268995,0.00014,2]
[335676485,1724421875299,2113.20503057,0.00014,2]
[335676486,1724421879946,510.5149478,0.00014,2]
[335676487,1724421889120,1280.11816632,0.00013999,2]
[335676488,1724421900196,889.60150815,0.00013971,2]
[335676489,1724421903660,154.72922386,0.00014,2]
[335676490,1724421918150,1072.58531528,0.00013971,2]
[335676491,1724421930514,154.87534708,0.00013971,2]
[335676492,1724421932754,980.0,0.00013971,2]
[335676493,1724421933848,310.37540345,0.00013971,2]
[335676494,1724421934838,413.66267349,0.00013971,2]
[335676495,1724421936244,-154.72922386,0.00014092,2]
[335676496,1724421936266,-584.36584237,0.00014145,2]
[335676497,1724421936288,-514.2883007,0.00014194,2]
[335676498,1724421937150,594.39091284,0.00013971,2]
[335676499,1724421938452,201.15501568,0.00014,2]
[335676501,1724421939589,337.41468672,0.00013971,2]
[335676502,1724421940556,459.34388976,0.00013971,2]
[335676503,1724421941508,342.7929108,0.00013971,2]
[335676504,1724421947090,301.66413705,0.00013971,2]
[335676505,1724421950092,-282.6264833,0.00014194,2]
[335676506,1724421950113,-300.0,0.00014244,2]
[335676507,1724421950135,-300.0,0.00014244,2]
[335676508,1724421950158,-157.03390899,0.00014245,2]
[335676509,1724421950178,-168.90879176,0.00014245,2]
[335676510,1724421950926,64.07513819,0.00013971,2]
[335676512,1724422035114,-1830.31897764,0.00013698,2]
[335676513,1724422035139,-202.68912669,0.00013792,2]
[335676514,1724422035163,-272.13537663,0.00013792,2]
[335676515,1724422035183,-927.69311873,0.00013792,2]
[335676516,1724422035204,-364.60977106,0.00013792,2]
[335676517,1724422035226,-245.12617459,0.00013792,2]
[335676518,1724422035253,-596.5204522,0.00013792,2]
[335676519,1724422035275,-300.0,0.0001397,2]
[335676520,1724422035296,-300.0,0.0001397,2]
[335676521,1724422035318,-510.5149478,0.00013971,2]
[335676522,1724422035339,-288.79616723,0.00013971,2]
[335676523,1724422035361,-423.15723095,0.00013971,2]
[335676524,1724422035383,-208.09136827,0.00013971,2]
[335676525,1724422035403,-431.9382532,0.00013971,2]
[335676526,1724422035425,-500.0,0.00014,2]
[335676527,1724422035446,-154.74379546,0.00014245,2]
[335676528,1724422035467,-191.052707,0.00014247,2]
[335676529,1724422035489,-526.629877,0.00014247,2]
[335676530,1724422035511,-1117.11011,0.00014295,2]
[335676531,1724422035532,-343.23307735,0.00014519,2]
[335676532,1724422035555,-244.013491,0.00014691,2]
[335676533,1724422035579,-244.013491,0.00014731,2]
[335676534,1724422035600,-244.013491,0.00014771,2]
[335676535,1724422035622,-244.013491,0.00014812,2]
[335676536,1724422035644,-3000.0,0.00014841,2]
[335676537,1724422035666,-244.013491,0.00014852,2]
[335676538,1724422035689,-244.013491,0.00014892,2]
[335676539,1724422035712,-244.013491,0.00014932,2]
[335676540,1724422035735,-244.013491,0.00014973,2]
[335676541,1724422035758,-13699.4189077,0.00015001,2]
[335676542,1724422035780,-244.013491,0.00015013,2]
[335676543,1724422035807,-244.013491,0.00015053,2]
[335676544,1724422035830,-244.013491,0.00015094,2]
[335676545,1724422035855,-244.013491,0.00015134,2]
[335676546,1724422035879,-244.013491,0.00015174,2]
[335676547,1724422035901,-244.013491,0.00015215,2]
[335676548,1724422035923,-244.013491,0.00015255,2]
[335676549,1724422035945,-244.013491,0.00015295,2]
[335676550,1724422035967,-420.0,0.00015305,2]
[335676551,1724422035993,-244.013491,0.00015335,2]
[335676552,1724422036014,-420.0,0.00015367,2]
[335676553,1724422036037,-244.013491,0.00015376,2]
[335676554,1724422036059,-244.013491,0.00015416,2]
[335676555,1724422036081,-244.013491,0.00015456,2]
[335676556,1724422036102,-500.0,0.00016438,2]
[335676557,1724422036123,-2222.62744646,0.00016501,2]
[335676558,1724422036144,-201.30493392,0.0001659,2]
[335676559,1724422036164,-284.584462,0.00016704,2]
[335676560,1724422036185,-306.0,0.00016704,2]
[335676561,1724422036205,-153.0,0.00016704,2]
[335676562,1724422036227,-153.0,0.00016704,2]
[335676563,1724422036250,-153.0,0.00016704,2]
[335676564,1724422036271,-500.0,0.00016725,7]
[335676565,1724422036293,-500.0,0.00016725,7]
[335676566,1724422036314,-483.0,0.00016768,2]
[335676567,1724422036335,-587.0,0.00016904,2]
[335676568,1724422036356,-998.9794786,0.00016933,2]
[335676569,1724422036378,-154.77557542,0.00016934,2]
[335676570,1724422036399,-653.82150236,0.00016934,2]
[335676571,1724422036421,-817.86473213,0.00016934,3]
[335676572,1724422036442,-932.03745378,0.00016934,2]
[335676573,1724422036463,-209.73889129,0.00016934,2]
[335676574,1724422036484,-154.72922486,0.00016934,2]
[335676575,1724422036506,-301.66413705,0.00016934,2]
[335676576,1724422036526,-2283.38976069,0.00016934,3]
[335676577,1724422036546,-253.72224647,0.00016934,2]
[335676578,1724422036566,-1076.08305704,0.00016934,2]
[335676579,1724422036587,-309.67712516,0.00016934,2]
[335676580,1724422036607,-155.5306141,0.00016934,2]
[335676581,1724422036628,-6274.98744036,0.00016969,2]
[335676582,1724422036648,-443.1006333,0.00016978,2]
[335676583,1724422036669,-150.0,0.00016997,2]
[335676584,1724422036690,-10599.39974814,0.00017,2]
[335676585,1724422036711,-466.25055737,0.00017048,2]
[335676586,1724422036731,-306.0,0.00017151,2]
[335676587,1724422036754,-163.95692627,0.00017183,2]
[335676588,1724422036774,-5334.77407693,0.00017199,2]
[335676589,1724422036795,-366.15075023,0.00017259,2]
[335676590,1724422036819,-205.14521283,0.00017266,2]
[335676591,1724422036840,-1416.0,0.00017269,2]
[335676592,1724422036862,-34137.44259109,0.00017269,2]
[335676593,1724422054551,500.0,1.3e-05,2]
[335676594,1724422060667,6745.2,0.00027,120]
[335676595,1724422145090,-500.0,0.00014,2]
[335676596,1724422145110,-658.7415639,0.00014519,3]
[335676597,1724422147103,-154.72922386,0.00013971,2]
[335676598,1724422147124,-1623.71711139,0.00014519,3]
[335676599,1724422147146,-276.72769992,0.00014519,3]
[335676600,1724422160743,154.72922386,0.00013971,2]
[335676601,1724422174398,155.19392959,0.00014519,2]
[335676611,1724422179406,51.3414242,0.00014519,2]
[335676612,1724422179426,971.831656,0.00014519,2]
[335676665,1724422232020,-52.90997684,0.00014519,2]
[335676667,1724422232032,-619.38002801,0.00014519,2]
[335676669,1724422232042,-315.32714031,0.00014519,2]
[335676671,1724422232054,-500.0,0.00016,2]
[335676673,1724422232064,-3014.9033061,0.00016338,2]
[335676675,1724422232073,-254.6120006,0.00016362,2]
[335676677,1724422232082,-500.0,0.00016438,2]
[335676679,1724422232094,-3072.3922616,0.0001728,2]
[335676681,1724422232103,-2187.95293962,0.000173,2]
[335676684,1724422232113,-1836.74210028,0.00017379,2]
[335676687,1724422232123,-300.0,0.0001738,2]
[335676688,1724422232134,-1836.74210025,0.00017382,2]
[335676689,1724422232145,-151.0,0.00017382,2]
[335676690,1724422232156,-1836.74210025,0.00017384,2]
[335676691,1724422232167,-1836.74210025,0.00017387,2]
[335676692,1724422232176,-306.94705846,0.00017389,2]
[335676693,1724422232193,-2655.88547171,0.00017389,2]
[335676694,1724422232202,-415.61452829,0.00017389,2]
[335676705,1724422238234,-1243.50316776,0.00017389,2]
[335676706,1724422238317,-177.6244042,0.00017389,2]
[335676707,1724422238327,-36614.34608807,0.00017389,2]
[335676708,1724422238337,-150.112233,0.000174,2]
[335676709,1724422238346,-150.112233,0.000174,2]
[335676710,1724422238356,-150.112233,0.000174,2]
[335676711,1724422238367,-156.7438,0.000174,2]
[335676712,1724422238376,-155.0,0.0001742,2]
[335676713,1724422238386,-255.2975683,0.0001745,2]
[335676714,1724422238397,-3268.677555,0.00017469,2]
[335676715,1724422238406,-3268.677555,0.00017469,2]
[335676716,1724422238416,-1738.547933,0.00017469,2]
[335676717,1724422238427,-1738.547933,0.00017469,2]
[335676718,1724422238437,-1135.97859,0.00017469,2]
[335676719,1724422238446,-220.987621,0.00017469,2]
[335676720,1724422238457,-1135.97859,0.00017469,2]
[335676721,1724422238467,-220.987621,0.00017469,2]
[335676722,1724422238477,-151.0,0.00017469,2]
[335676723,1724422238486,-500.0,0.00017473,2]
[335676724,1724422238496,-200.87133103,0.00017473,2]
[335676725,1724422238505,-282.69865686,0.00017478,2]
[335676726,1724422238515,-311460.891416,0.00017479,2]
[335676727,1724422238525,-207.6636928,0.00017479,2]
[335676728,1724422238534,-153.0,0.00017479,2]
[335676729,1724422238544,-153.0,0.00017479,2]
[335676730,1724422238554,-153.0,0.00017479,2]
[335676731,1724422238563,-415.3273856,0.00017479,2]
[335676732,1724422238574,-153.0,0.00017479,2]
[335676733,1724422238584,-153.0,0.00017479,2]
[335676734,1724422238593,-153.0,0.00017479,2]
[335676735,1724422238602,-153.0,0.00017479,2]
[335676736,1724422238613,-153.0,0.00017479,2]
[335676737,1724422238622,-153.0,0.00017479,2]
[335676738,1724422238632,-153.0,0.00017479,2]
[335676739,1724422238641,-153.0,0.00017479,2]
[335676740,1724422238655,-151.0,0.00017481,2]
[335676741,1724422238666,-938.28593261,0.00017488,2]
[335676742,1724422238676,-938.28593261,0.00017488,2]
[335676743,1724422238686,-938.28593261,0.00017488,2]
[335676744,1724422238696,-938.28593261,0.00017488,2]
[335676745,1724422238705,-938.28593261,0.00017488,2]
[335676746,1724422238715,-938.28593261,0.00017488,2]
[335676747,1724422238724,-938.28593261,0.00017488,2]
[335676748,1724422238734,-220.49886649,0.00017488,2]
[335676749,1724422238744,-6886.79250391,0.00017488,2]
[335676750,1724422238753,-262.20611485,0.00017488,2]
[335676751,1724422238762,-11933.63972707,0.00017489,9]
[335676752,1724422238771,-151.0,0.00017489,2]
[335676753,1724422238781,-263.732356,0.00017489,2]
[335676754,1724422238790,-151.0,0.00017489,2]
[335676755,1724422238800,-151.0,0.00017489,2]
[335676756,1724422238809,-151.0,0.00017489,2]
[335676757,1724422238818,-251.47809,0.00017489,2]
[335676758,1724422238828,-209.469099,0.00017489,2]
[335676759,1724422238838,-209.469099,0.00017489,2]
[335676760,1724422238848,-209.469099,0.00017489,2]
[335676761,1724422238860,-209.469099,0.00017489,2]
[335676762,1724422238870,-209.469099,0.00017489,2]
[335676763,1724422238879,-209.469099,0.00017489,2]
[335676764,1724422238888,-209.469099,0.00017489,2]
[335676765,1724422238901,-209.469099,0.00017489,2]
[335676766,1724422238911,-209.469099,0.00017489,2]
[335676767,1724422238920,-209.469099,0.00017489,2]
[335676768,1724422238930,-209.469099,0.00017489,2]
[335676769,1724422238940,-209.469099,0.00017489,2]
[335676770,1724422238949,-209.469099,0.00017489,2]
[335676771,1724422238959,-209.469099,0.00017489,2]
[335676772,1724422238968,-114.63219283,0.00017489,2]
[335676802,1724422239872,-94.83690617,0.00017489,2]
[335676804,1724422239882,-209.469099,0.00017489,2]
[335676806,1724422239891,-209.469099,0.00017489,2]
[335676808,1724422239903,-209.469099,0.00017489,2]
[335676810,1724422239914,-209.469099,0.00017489,2]
[335676813,1724422239923,-209.469096,0.00017489,2]
[335676815,1724422239934,-371.475079,0.00017489,2]
[335676816,1724422239943,-371.475079,0.00017489,2]
[335676817,1724422239953,-371.475079,0.00017489,2]
[335676818,1724422239962,-371.475079,0.00017489,2]
[335676820,1724422239972,-371.475079,0.00017489,2]
[335676822,1724422239982,-371.475077,0.00017489,2]
[335676824,1724422239991,-151.0,0.00017489,2]
[335676826,1724422240000,-151.0,0.00017489,2]
[335676828,1724422240010,-151.0,0.00017489,2]
[335676830,1724422240020,-151.0,0.00017489,2]
[335676831,1724422240031,-151.0,0.00017489,2]
[335676833,1724422240042,-151.0,0.00017489,2]
[335676834,1724422240052,-151.0,0.00017489,2]
[335676835,1724422240062,-285.498925,0.00017489,2]
[335676836,1724422240072,-151.0,0.00017489,2]
[335676837,1724422240082,-151.0,0.00017489,2]
[335676838,1724422240092,-151.0,0.00017489,2]
[335676839,1724422240101,-151.0,0.00017489,2]
[335676840,1724422240111,-254.297853,0.00017489,2]
[335676841,1724422240122,-161.901032,0.00017489,2]
[335676842,1724422240132,-161.901032,0.00017489,2]
[335676844,1724422240142,-161.901032,0.00017489,2]
[335676845,1724422240155,-161.901032,0.00017489,2]
[335676847,1724422240164,-161.901032,0.00017489,2]
[335676848,1724422240174,-755.395342,0.00017489,2]
[335676849,1724422240183,-161.901032,0.00017489,2]
[335676850,1724422240193,-755.395342,0.00017489,2]
[335676851,1724422240203,-161.901032,0.00017489,2]
[335676852,1724422240212,-755.395342,0.00017489,2]
[335676853,1724422240222,-755.395342,0.00017489,2]
[335676854,1724422240231,-755.395342,0.00017489,2]
[335676855,1724422240241,-161.901032,0.00017489,2]
[335676856,1724422240250,-755.395342,0.00017489,2]
[335676857,1724422240260,-161.901032,0.00017489,2]
[335676858,1724422240270,-269.93984052,0.00017489,2]
[335676865,1724422240758,-485.45550148,0.00017489,2]
[335676866,1724422240768,-161.901032,0.00017489,2]
[335676867,1724422240778,-161.901032,0.00017489,2]
[335676868,1724422240787,-755.395342,0.00017489,2]
[335676869,1724422240797,-161.901032,0.00017489,2]
[335676870,1724422240806,-380.91833567,0.00017489,2]
[335676871,1724422240818,-374.47700633,0.00017489,2]
[335676872,1724422240827,-161.901032,0.00017489,2]
[335676873,1724422240837,-755.395342,0.00017489,2]
[335676874,1724422240846,-161.901032,0.00017489,2]
[335676875,1724422240855,-755.395342,0.00017489,2]
[335676876,1724422240868,-161.901032,0.00017489,2]
[335676877,1724422240877,-755.395342,0.00017489,2]
[335676878,1724422240886,-161.901032,0.00017489,2]
[335676879,1724422240898,-755.395342,0.00017489,2]
[335676880,1724422240907,-161.901032,0.00017489,2]
[335676881,1724422240917,-755.395342,0.00017489,2]
[335676882,1724422240926,-161.901038,0.00017489,2]
[335676883,1724422240937,-755.395342,0.00017489,2]
[335676884,1724422240946,-573.54481067,0.00017489,2]
[335676885,1724422240958,-181.85053133,0.00017489,2]
[335676886,1724422240967,-431.26780909,0.00017489,2]
[335676887,1724422240979,-324.12753291,0.00017489,2]
[335676888,1724422240989,-755.395342,0.00017489,2]
[335676889,1724422240999,-755.395342,0.00017489,2]
[335676890,1724422241008,-755.395335,0.00017489,2]
[335676891,1724422241017,-310.0,0.00017489,2]
[335676892,1724422241026,-310.0,0.00017489,2]
[335676893,1724422241036,-310.0,0.00017489,2]
[335676894,1724422241045,-310.0,0.00017489,2]
[335676895,1724422241054,-310.0,0.00017489,2]
[335676896,1724422241064,-310.0,0.00017489,2]
[335676897,1724422241073,-265.128871,0.00017489,2]
[335676898,1724422241082,-656.253367,0.00017489,2]
[335676899,1724422241091,-656.253367,0.00017489,2]
[335676900,1724422241101,-656.253367,0.00017489,2]
[335676901,1724422241110,-656.253367,0.00017489,2]
[335676902,1724422241119,-656.253367,0.00017489,2]
[335676903,1724422241128,-656.253367,0.00017489,2]
[335676904,1724422241137,-656.253367,0.00017489,2]
[335676905,1724422241147,-656.253367,0.00017489,2]
[335676906,1724422241156,-656.253367,0.00017489,2]
[335676907,1724422241165,-656.253367,0.00017489,2]
[335676908,1724422241174,-656.253367,0.00017489,2]
[335676909,1724422241184,-656.253367,0.00017489,2]
[335676910,1724422241193,-656.253367,0.00017489,2]
[335676911,1724422241202,-656.253367,0.00017489,2]
[335676912,1724422241211,-656.253367,0.00017489,2]
[335676913,1724422241221,-656.253367,0.00017489,2]
[335676914,1724422241231,-656.253367,0.00017489,2]
[335676915,1724422241241,-656.253367,0.00017489,2]
[335676916,1724422241251,-656.253367,0.00017489,2]
[335676917,1724422241259,-656.253366,0.00017489,2]
[335676918,1724422241269,-172.126888,0.00017489,2]
[335676919,1724422241278,-172.126888,0.00017489,2]
[335676920,1724422241287,-172.126888,0.00017489,2]
[335676921,1724422241296,-172.126888,0.00017489,2]
[335676922,1724422241305,-172.126888,0.00017489,2]
[335676923,1724422241314,-172.126888,0.00017489,2]
[335676924,1724422241323,-172.126888,0.00017489,2]
[335676925,1724422241333,-172.126888,0.00017489,2]
[335676926,1724422241342,-172.126888,0.00017489,2]
[335676927,1724422241352,-172.126888,0.00017489,2]
[335676928,1724422241361,-172.126888,0.00017489,2]
[335676929,1724422241370,-172.126888,0.00017489,2]
[335676930,1724422241380,-172.126888,0.00017489,2]
[335676931,1724422241389,-172.126888,0.00017489,2]
[335676932,1724422241400,-172.126888,0.00017489,2]
[335676933,1724422241409,-172.126888,0.00017489,2]
[335676934,1724422241419,-172.126888,0.00017489,2]
[335676935,1724422241428,-172.126888,0.00017489,2]
[335676936,1724422241438,-172.126888,0.00017489,2]
[335676937,1724422241447,-172.126895,0.00017489,2]
[335676938,1724422241457,-3750.431494,0.00017489,2]
[335676939,1724422241466,-151.0,0.00017489,2]
[335676940,1724422241475,-151.0,0.00017489,2]
[335676941,1724422241485,-151.0,0.00017489,2]
[335676942,1724422241494,-151.0,0.00017489,2]
[335676943,1724422241503,-151.0,0.00017489,2]
[335676944,1724422241513,-214.636255,0.00017489,2]
[335676945,1724422241522,-151.0,0.00017489,2]
[335676946,1724422241532,-214.636255,0.00017489,2]
[335676947,1724422241541,-151.0,0.00017489,2]
[335676948,1724422241550,-151.0,0.00017489,2]
[335676949,1724422241560,-214.636255,0.00017489,2]
[335676950,1724422241570,-151.0,0.00017489,2]
[335676951,1724422241580,-214.636255,0.00017489,2]
[335676952,1724422241589,-151.0,0.00017489,2]
[335676953,1724422241598,-214.636255,0.00017489,2]
[335676954,1724422241607,-151.0,0.00017489,2]
[335676955,1724422241616,-214.636255,0.00017489,2]
[335676956,1724422241626,-151.0,0.00017489,2]
[335676957,1724422241635,-214.636255,0.00017489,2]
[335676958,1724422241645,-151.0,0.00017489,2]
[335676959,1724422241655,-214.636255,0.00017489,2]
[335676960,1724422241664,-214.636255,0.00017489,2]
[335676961,1724422241674,-151.0,0.00017489,2]
[335676962,1724422241683,-214.636255,0.00017489,2]
[335676963,1724422241692,-184.286642,0.00017489,2]
[335676964,1724422241701,-214.636255,0.00017489,2]
[335676965,1724422241711,-214.636255,0.00017489,2]
[335676966,1724422241720,-214.636255,0.00017489,2]
[335676967,1724422241729,-214.636255,0.00017489,2]
[335676968,1724422241739,-214.636255,0.00017489,2]
[335676969,1724422241748,-214.636255,0.00017489,2]
[335676970,1724422241757,-214.636255,0.00017489,2]
[335676971,1724422241766,-214.636255,0.00017489,2]
[335676972,1724422241776,-214.636255,0.00017489,2]
[335676973,1724422241786,-214.636264,0.00017489,2]
[335676974,1724422241795,-151.0,0.00017489,2]
[335676975,1724422241805,-151.0,0.00017489,2]
[335676976,1724422241815,-151.0,0.00017489,2]
[335676977,1724422241824,-151.0,0.00017489,2]
[335676978,1724422241833,-151.0,0.00017489,2]
[335676979,1724422241843,-151.0,0.00017489,2]
[335676980,1724422241853,-151.0,0.00017489,2]
[335676981,1724422241866,-151.0,0.00017489,2]
[335676982,1724422241876,-151.0,0.00017489,2]
[335676983,1724422241885,-151.0,0.00017489,2]
[335676984,1724422241895,-151.0,0.00017489,2]
[335676985,1724422241906,-151.0,0.00017489,2]
[335676986,1724422241915,-151.0,0.00017489,2]
[335676987,1724422241924,-151.0,0.00017489,2]
[335676988,1724422241935,-151.0,0.00017489,2]
[335676989,1724422241945,-151.0,0.00017489,2]
[335676990,1724422241955,-151.0,0.00017489,2]
[335676991,1724422241965,-151.0,0.00017489,2]
[335676992,1724422241974,-168.69733,0.00017489,2]
[335676993,1724422241983,-151.0,0.00017489,2]
[335676994,1724422241992,-151.0,0.00017489,2]
[335676995,1724422242001,-151.0,0.00017489,2]
[335676996,1724422242010,-151.0,0.00017489,2]
[335676997,1724422242020,-151.0,0.00017489,2]
[335676998,1724422242029,-155.824565,0.00017489,2]
[335676999,1724422242039,-151.0,0.00017489,2]
[335677000,1724422242048,-151.0,0.00017489,2]
[335677001,1724422242057,-151.0,0.00017489,2]
[335677002,1724422242066,-151.0,0.00017489,2]
[335677003,1724422242076,-151.0,0.00017489,2]
[335677004,1724422242085,-151.0,0.00017489,2]
[335677005,1724422242095,-151.0,0.00017489,2]
[335677006,1724422242104,-151.0,0.00017489,2]
[335677007,1724422242113,-151.0,0.00017489,2]
[335677008,1724422242124,-151.0,0.00017489,2]
[335677009,1724422242134,-220.249376,0.00017489,2]
[335677010,1724422242143,-209.958489,0.00017489,2]
[335677011,1724422242154,-209.958489,0.00017489,2]
[335677012,1724422242163,-209.958489,0.00017489,2]
[335677013,1724422242172,-209.958489,0.00017489,2]
[335677014,1724422242181,-209.958489,0.00017489,2]
[335677015,1724422242190,-7584.130788,0.00017489,2]
[335677016,1724422242200,-209.958489,0.00017489,2]
[335677017,1724422242209,-7584.130788,0.00017489,2]
[335677018,1724422242218,-209.958489,0.00017489,2]
[335677019,1724422242227,-7584.130788,0.00017489,2]
[335677020,1724422242237,-7584.130788,0.00017489,2]
[335677021,1724422242246,-209.958489,0.00017489,2]
[335677022,1724422242255,-7584.130788,0.00017489,2]
[335677023,1724422242265,-209.958489,0.00017489,2]
[335677024,1724422242274,-7584.130788,0.00017489,2]
[335677025,1724422242284,-209.958489,0.00017489,2]
[335677026,1724422242293,-7584.130788,0.00017489,2]
[335677027,1724422242302,-7584.130788,0.00017489,2]
[335677028,1724422242312,-209.958489,0.00017489,2]
[335677029,1724422242476,-7584.130788,0.00017489,2]
[335677030,1724422242487,-209.958489,0.00017489,2]
[335677031,1724422242497,-7584.130788,0.00017489,2]
[335677033,1724422242506,-209.958489,0.00017489,2]
[335677035,1724422242516,-7584.130788,0.00017489,2]
[335677036,1724422242527,-7584.130788,0.00017489,2]
[335677037,1724422242537,-209.958489,0.00017489,2]
[335677038,1724422242546,-7584.130788,0.00017489,2]
[335677039,1724422242557,-209.958489,0.00017489,2]
[335677040,1724422242566,-7584.130788,0.00017489,2]
[335677041,1724422242576,-209.958489,0.00017489,2]
[335677043,1724422242586,-7584.130788,0.00017489,2]
[335677044,1724422242595,-7584.130788,0.00017489,2]
[335677045,1724422242605,-209.958489,0.00017489,2]
[335677046,1724422242615,-7584.130788,0.00017489,2]
[335677047,1724422242625,-209.958489,0.00017489,2]
[335677048,1724422242635,-7584.130788,0.00017489,2]
[335677049,1724422242645,-7584.130788,0.00017489,2]
[335677050,1724422242655,-209.958489,0.00017489,2]
[335677051,1724422242664,-7584.130793,0.00017489,2]
[335677052,1724422242674,-209.958486,0.00017489,2]
[335677053,1724422242684,-151.0,0.00017489,2]
[335677054,1724422242693,-151.0,0.00017489,2]
[335677055,1724422242704,-151.0,0.00017489,2]
[335677058,1724422242713,-151.0,0.00017489,2]
[335677059,1724422242722,-151.0,0.00017489,2]
[335677062,1724422242732,-151.0,0.00017489,2]
[335677065,1724422242742,-151.0,0.00017489,2]
[335677066,1724422242751,-151.0,0.00017489,2]